lending/lending_fUSD_20250819
["ID","MTS","AMOUNT","RATE_DAILY","PERIOD"]
[380265820,1755630449701,-400.0,0.00023273,30]
[380265821,1755630449745,-400.0,0.00023273,30]
[380265822,1755630449792,-2289.31,0.00023273,30]
[380265823,1755630449838,-759.13,0.00023273,30]
[380265824,1755630449884,-400.0,0.00023273,30]
[380265825,1755630449932,-1766.6,0.00023273,30]
[380265826,1755630449979,-2391.14,0.00023273,30]
[380265827,1755630450024,-764.46,0.00023273,30]
[380265828,1755630450073,-1321.22,0.00023273,30]
[380265829,1755630450124,-2045.43,0.00023273,30]
[380265830,1755630450176,-2644.5,0.00023273,30]
[380265831,1755630450225,-400.0,0.00023273,30]
[380265832,1755630450277,-250.0,0.00023273,30]
[380265833,1755630450332,-400.0,0.00023273,30]
[380265834,1755630450384,-1028.93,0.00023273,30]
[380265835,1755630450433,-2587.83,0.00023273,30]
[380265836,1755630450485,-1829.49,0.00023273,30]
[380265837,1755630450533,-1425.98,0.00023273,30]
[380265838,1755630450580,-574.26,0.00023273,30]
[380265839,1755630450626,-400.0,0.00023273,30]
[380265840,1755630450671,-414.53,0.00023273,30]
[380265841,1755630450715,-1609.98,0.00023273,30]
[380265842,1755630450761,-850.85,0.00023273,30]
[380265843,1755630450805,-9247.25,0.00023273,30]
[380265844,1755630450849,-1988.32,0.00023273,30]
[380265845,1755630450892,-828.08,0.00023273,30]
[380265846,1755630450939,-400.0,0.00023273,30]
[380265847,1755630451000,-400.0,0.00023273,30]
[380265848,1755630451059,-400.0,0.00023273,30]
[380265849,1755630451112,-402.0,0.00023273,30]
[380265850,1755630451159,-3327.81,0.00023273,30]
[380265851,1755630451207,-400.0,0.00023273,30]
[380265852,1755630451253,-2635.88,0.00023273,30]
[380265853,1755630451304,-3966.88,0.00023273,30]
[380265854,1755630451353,-2274.92,0.00023273,30]
[380265855,1755630451409,-1675.13,0.00023273,30]
[380265856,1755630451459,-400.0,0.00023273,30]
[380265857,1755630451508,-400.0,0.00023273,30]
[380265858,1755630451555,-9159.69,0.00023273,30]
[380265859,1755630451604,-400.0,0.00023273,30]
[380265860,1755630451651,-633.22,0.00023273,30]
[380265861,1755630451696,-400.0,0.00023273,30]
[380265862,1755630451737,-400.0,0.00023273,30]
[380265863,1755630451783,-4474.11,0.00023273,30]
[380265864,1755630451824,-400.0,0.00023273,30]
[380265865,1755630451865,-2597.2,0.00023273,30]
[380265866,1755630451907,-1312.13,0.00023273,30]
[380265867,1755630451950,-459.28091697,0.00023273,30]
[380265868,1755630451991,-400.0,0.00023273,30]
[380265869,1755630452035,-1129.6,0.00023273,30]
[380265870,1755630452079,-1454.3,0.00023273,30]
[380265871,1755630452125,-400.0,0.00023273,30]
[380265872,1755630452168,-400.0,0.00023273,30]
[380265873,1755630452212,-892.58,0.00023273,30]
[380265874,1755630452259,-704.57,0.00023273,30]
[380265875,1755630452304,-1389.72,0.00023273,30]
[380265876,1755630452348,-1626.22,0.00023273,30]
[380265877,1755630452390,-400.0,0.00023273,30]
[380265878,1755630452435,-400.0,0.00023273,30]
[380265879,1755630452477,-400.0,0.00023273,30]
[380265880,1755630452522,-402.52,0.00023273,30]
[380265881,1755630452566,-2232.67,0.00023273,30]
[380265882,1755630452613,-758.46,0.00023273,30]
[380265883,1755630452655,-1948.15,0.00023273,30]
[380265884,1755630452696,-400.0,0.00023273,30]
[380265885,1755630452740,-1767.01,0.00023273,30]
[380265886,1755630452787,-646.97,0.00023273,30]
[380265887,1755630452830,-1951.89,0.00023273,30]
[380265888,1755630452877,-1591.73,0.00023273,30]
[380265889,1755630452921,-1978.37,0.00023273,30]
[380265890,1755630452967,-3882.91,0.00023273,30]
[380265891,1755630453283,-988.17,0.00023273,30]
[380265892,1755630453343,-760.8,0.00023273,30]
[380265893,1755630453399,-1713.52,0.00023273,30]
[380265894,1755630453450,-452.3,0.00023273,30]
[380265895,1755630453501,-1178.32,0.00023273,30]
[380265896,1755630453552,-1901.5,0.00023273,30]
[380265897,1755630453600,-400.0,0.00023273,30]
[380265898,1755630453648,-474.04,0.00023273,30]
[380265899,1755630453696,-1325.74,0.00023273,30]
[380265900,1755630453751,-400.0,0.00023273,30]
[380265901,1755630453810,-400.0,0.00023273,30]
[380265902,1755630453864,-2626.25,0.00023273,30]
[380265903,1755630453915,-400.0,0.00023273,30]
[380265904,1755630453971,-1256.66,0.00023273,30]
[380265905,1755630454023,-2345.23,0.00023273,30]
[380265906,1755630454075,-466.09,0.00023273,30]
[380265907,1755630454135,-2766.96,0.00023273,30]
[380265908,1755630454187,-400.0,0.00023273,30]
[380265910,1755630454239,-843.54,0.00023273,30]
[380265911,1755630454297,-2199.04,0.00023273,30]
[380265912,1755630454359,-400.0,0.00023273,30]
[380265913,1755630454413,-3426.21,0.00023273,30]
[380265914,1755630454462,-8015.84,0.00023273,30]
[380265915,1755630454513,-400.0,0.00023273,30]
[380265916,1755630454559,-1431.42,0.00023273,30]
[380265917,1755630454603,-2339.85,0.00023273,30]
[380265918,1755630454649,-1879.73,0.00023273,30]
[380265919,1755630454697,-400.0,0.00023273,30]
[380265920,1755630454744,-2605.4,0.00023273,30]
[380265921,1755630454792,-400.0,0.00023273,30]
[380265922,1755630454839,-3015.33,0.00023273,30]
[380265923,1755630454884,-2170.2,0.00023273,30]
[380265924,1755630454929,-2965.05,0.00023273,30]
[380265925,1755630454975,-400.0,0.00023273,30]
[380265926,1755630455019,-400.0,0.00023273,30]
[380265927,1755630455075,-1003.58,0.00023273,30]
[380265928,1755630455130,-781.97,0.00023273,30]
[380265929,1755630455188,-1775.32,0.00023273,30]
[380265930,1755630455241,-667.84,0.00023273,30]
[380265931,1755630455292,-2499.51,0.00023273,30]
[380265932,1755630455343,-1721.04,0.00023273,30]
[380265933,1755630455393,-400.0,0.00023273,30]
[380265934,1755630455443,-2164.63,0.00023273,30]
[380265935,1755630455489,-657.01,0.00023273,30]
[380265936,1755630455534,-400.0,0.00023273,30]
[380265937,1755630455581,-1626.0,0.00023273,30]
[380265938,1755630455625,-915.71,0.00023273,30]
[380265939,1755630455670,-400.0,0.00023273,30]
[380265940,1755630455715,-400.0,0.00023273,30]
[380265941,1755630455759,-400.0,0.00023273,30]
[380265942,1755630455805,-400.0,0.00023273,30]
[380265943,1755630455851,-400.0,0.00023273,30]
[380265944,1755630455898,-834.1,0.00023273,30]
[380265945,1755630455945,-762.72,0.00023273,30]
[380265946,1755630455990,-812.96,0.00023273,30]
[380265947,1755630456034,-400.0,0.00023273,30]
[380265948,1755630456081,-1795.88,0.00023273,30]
[380265949,1755630456126,-812.84,0.00023273,30]
[380265950,1755630456173,-1939.3,0.00023273,30]
[380265951,1755630456221,-400.0,0.00023273,30]
[380265952,1755630456268,-2089.8,0.00023273,30]
[380265953,1755630456320,-2037.62,0.00023273,30]
[380265954,1755630456367,-400.0,0.00023273,30]
[380265955,1755630456413,-400.0,0.00023273,30]
[380265956,1755630456458,-10633.1,0.00023273,30]
[380265957,1755630456501,-426.15199471,0.00023273,30]
[380265958,1755630456545,-400.0,0.00023273,30]
[380265959,1755630456588,-400.0,0.00023273,30]
[380265960,1755630456632,-5984.63,0.00023273,30]
[380265961,1755630456674,-912.15,0.00023273,30]
[380265962,1755630456715,-1867.16,0.00023273,30]
[380265963,1755630456758,-1640.45,0.00023273,30]
[380265964,1755630456800,-927.26,0.00023273,30]
[380265965,1755630456841,-400.0,0.00023273,30]
[380265966,1755630456883,-1264.15,0.00023273,30]
[380265967,1755630456927,-854.72,0.00023273,30]
[380265968,1755630456973,-822.45,0.00023273,30]
[380265969,1755630457018,-1632.29,0.00023273,30]
[380265970,1755630457066,-1147.83,0.00023273,30]
[380265971,1755630457116,-3121.15,0.00023273,30]
[380265972,1755630457167,-2642.11,0.00023273,30]
[380265973,1755630457218,-400.0,0.00023273,30]
[380265974,1755630457268,-400.0,0.00023273,30]
[380265975,1755630457316,-437.64,0.00023273,30]
[380265976,1755630457362,-400.0,0.00023273,30]
[380265977,1755630457408,-2401.94,0.00023273,30]
[380265978,1755630457453,-400.0,0.00023273,30]
[380265979,1755630457501,-2923.07,0.00023273,30]
[380265980,1755630457551,-400.0,0.00023273,30]
[380265981,1755630457596,-531.2,0.00023273,30]
[380265982,1755630457645,-984.29,0.00023273,30]
[380265983,1755630457694,-400.0,0.00023273,30]
[380265984,1755630457739,-888.25,0.00023273,30]
[380265985,1755630457780,-400.0,0.00023273,30]
[380265986,1755630457822,-842.32,0.00023273,30]
[380265987,1755630457863,-403.8287321,0.00023273,30]
[380265988,1755630457907,-673.56,0.00023273,30]
[380265989,1755630457952,-417.2,0.00023273,30]
[380265990,1755630457997,-1920.95,0.00023273,30]
[380265991,1755630458044,-400.0,0.00023273,30]
[380265992,1755630458093,-400.0,0.00023273,30]
[380265993,1755630458143,-1843.66,0.00023273,30]
[380265994,1755630458188,-400.0,0.00023273,30]
[380265995,1755630458234,-1522.14,0.00023273,30]
[380265996,1755630458281,-589.48,0.00023273,30]
[380265997,1755630458333,-404.25312614,0.00023273,30]
[380265998,1755630458382,-1357.11,0.00023273,30]
[380265999,1755630458430,-4943.09,0.00023273,30]
[380266000,1755630458485,-1090.36,0.00023273,30]
[380266001,1755630458539,-2132.45,0.00023273,30]
[380266002,1755630458597,-1620.06,0.00023273,30]
[380266003,1755630458651,-1043.12,0.00023273,30]
[380266004,1755630458699,-400.0,0.00023273,30]
[380266005,1755630458742,-400.0,0.00023273,30]
[380266006,1755630459029,-2036.5,0.00023273,30]
[380266007,1755630459083,-2160.01,0.00023273,30]
[380266008,1755630459136,-400.0,0.00023273,30]
[380266009,1755630459185,-733.36,0.00023273,30]
[380266010,1755630459234,-6197.97,0.00023273,30]
[380266011,1755630459285,-400.0,0.00023273,30]
[380266012,1755630459339,-400.0,0.00023273,30]
[380266013,1755630459389,-2269.73,0.00023273,30]
[380266014,1755630459438,-1567.0,0.00023273,30]
[380266015,1755630459482,-1859.59,0.00023273,30]
[380266016,1755630459525,-7066.74,0.00023273,30]
[380266017,1755630459570,-400.0,0.00023273,30]
[380266018,1755630459615,-400.0,0.00023273,30]
[380266019,1755630459656,-2339.92,0.00023273,30]
[380266020,1755630459699,-400.0,0.00023273,30]
[380266021,1755630459740,-402.49404799,0.00023273,30]
[380266022,1755630459782,-400.0,0.00023273,30]
[380266023,1755630459825,-400.0,0.00023273,30]
[380266024,1755630459867,-3558.39,0.00023273,30]
[380266025,1755630459909,-1713.64,0.00023273,30]
[380266026,1755630459953,-661.18,0.00023547,30]
[380266027,1755630459997,-897.36,0.00023547,30]
[380266028,1755630460045,-400.0,0.00023547,30]
[380266029,1755630460092,-400.0,0.00023547,30]
[380266030,1755630460142,-1779.17,0.00023547,30]
[380266031,1755630460189,-868.82,0.00023547,30]
[380266032,1755630460239,-400.0,0.00023547,30]
[380266033,1755630460290,-931.81,0.00023547,30]
[380266034,1755630460341,-400.0,0.00023547,30]
[380266035,1755630460397,-400.0,0.00023547,30]
[380266036,1755630460443,-1278.53,0.00023547,30]
[380266037,1755630460489,-400.0,0.00023547,30]
[380266038,1755630460535,-922.03,0.00023547,30]
[380266039,1755630460582,-1998.66,0.00023547,30]
[380266040,1755630460627,-523.74,0.00023547,30]
[380266041,1755630460674,-1077.73,0.00023547,30]
[380266042,1755630460717,-400.0,0.00023547,30]
[380266043,1755630460763,-1083.11,0.00023547,30]
[380266044,1755630460808,-424.48,0.00023547,30]
[380266045,1755630460854,-1726.78,0.00023547,30]
[380266046,1755630460899,-400.0,0.00023547,30]
[380266047,1755630460945,-573.46,0.00023547,30]
[380266048,1755630460990,-405.71,0.00023547,30]
[380266049,1755630461038,-400.0,0.00023547,30]
[380266050,1755630461087,-1010.67,0.00023547,30]
[380266051,1755630461135,-1099.82,0.00023547,30]
[380266052,1755630461185,-1556.93,0.00023547,30]
[380266053,1755630461235,-400.0,0.00023547,30]
[380266054,1755630461281,-400.0,0.00023547,30]
[380266055,1755630461330,-434.09,0.00023547,30]
[380266056,1755630461376,-1791.08,0.00023547,30]
[380266057,1755630461418,-1835.72,0.00023547,30]
[380266058,1755630461461,-1178.09,0.00023547,30]
[380266059,1755630461506,-400.0,0.00023547,30]
[380266060,1755630461548,-1032.27,0.00023547,30]
[380266061,1755630461590,-405.59,0.00023547,30]
[380266062,1755630461632,-657.7,0.00023547,30]
[380266063,1755630461673,-2773.84,0.00023547,30]
[380266064,1755630461713,-401.29476902,0.00023547,30]
[380266065,1755630461754,-1415.69,0.00023547,30]
[380266066,1755630461797,-2616.85,0.00023547,30]
[380266067,1755630461838,-569.65,0.00023547,30]
[380266068,1755630461882,-461.18,0.00023547,30]
[380266069,1755630461923,-407.36,0.00023547,30]
[380266070,1755630461966,-438.1,0.00023547,30]
[380266071,1755630462009,-400.0,0.00023547,30]
[380266072,1755630462055,-609.41,0.00023547,30]
[380266073,1755630462098,-523.45,0.00023547,30]
[380266074,1755630462142,-1883.4,0.00023547,30]
[380266075,1755630462185,-2291.88,0.00023547,30]
[380266076,1755630462229,-1113.47,0.00023547,30]
[380266077,1755630462275,-2659.67,0.00023547,30]
[380266078,1755630462325,-1609.3,0.00023547,30]
[380266079,1755630462372,-1973.84,0.00023547,30]
[380266080,1755630462416,-400.0,0.00023547,30]
[380266081,1755630462458,-2474.93,0.00023547,30]
[380266082,1755630462500,-400.0,0.00023547,30]
[380266083,1755630462546,-580.89,0.00023547,30]
[380266084,1755630462588,-503.96,0.00023547,30]
[380266085,1755630462631,-1390.04,0.00023547,30]
[380266086,1755630462672,-1375.63,0.00023547,30]
[380266087,1755630462713,-2391.62,0.00023547,30]
[380266088,1755630462754,-829.42,0.00023547,30]
[380266089,1755630462798,-400.0,0.00023547,30]
[380266090,1755630462841,-2483.35,0.00023547,30]
[380266091,1755630462882,-400.0,0.00023547,30]
[380266092,1755630462934,-2313.87,0.00023547,30]
[380266093,1755630462985,-567.71,0.00023547,30]
[380266094,1755630463031,-976.66,0.00023547,30]
[380266095,1755630463077,-402.22,0.00023547,30]
[380266096,1755630463124,-444.55,0.00023547,30]
[380266097,1755630463172,-400.0,0.00023547,30]
[380266098,1755630463221,-2523.31,0.00023547,30]
[380266099,1755630463272,-3390.74,0.00023547,30]
[380266100,1755630463323,-400.0,0.00023547,30]
[380266101,1755630463370,-400.0,0.00023547,30]
[380266102,1755630463413,-1613.2,0.00023547,30]
[380266103,1755630463455,-655.88,0.00023547,30]
[380266104,1755630463496,-1683.94,0.00023547,30]
[380266105,1755630463539,-2173.68,0.00023547,30]
[380266106,1755630463585,-2265.47,0.00023547,30]
[380266107,1755630463627,-400.0,0.00023547,30]
[380266108,1755630463673,-2568.38,0.00023547,30]
[380266109,1755630463715,-400.0,0.00023547,30]
[380266110,1755630463757,-646.96,0.00023547,30]
[380266111,1755630463801,-1093.07,0.00023547,30]
[380266112,1755630463844,-1066.76,0.00023547,30]
[380266113,1755630463893,-1739.56,0.00023547,30]
[380266114,1755630463939,-2666.99,0.00023547,30]
[380266115,1755630463983,-1769.99,0.00023547,30]
[380266116,1755630464028,-400.0,0.00023547,30]
[380266117,1755630464077,-750.6,0.00023547,30]
[380266118,1755630464127,-400.0,0.00023547,30]
[380266119,1755630464175,-400.0,0.00023547,30]
[380266120,1755630464227,-983.97,0.00023547,30]
[380266121,1755630464718,-1163.48,0.00023547,30]
[380266122,1755630464767,-1275.26,0.00023547,30]
[380266123,1755630464814,-1304.3,0.00023547,30]
[380266124,1755630464858,-1417.75,0.00023547,30]
[380266125,1755630464908,-1826.41,0.00023547,30]
[380266126,1755630464954,-1984.55,0.00023547,30]
[380266127,1755630465000,-475.91,0.00023547,30]
[380266128,1755630465056,-2197.7,0.00023547,30]
[380266129,1755630465108,-441.25,0.00023547,30]
[380266130,1755630465160,-400.0,0.00023547,30]
[380266131,1755630465212,-2376.92,0.00023547,30]
[380266132,1755630465268,-400.0,0.00023547,30]
[380266133,1755630465323,-1698.15,0.00023547,30]
[380266134,1755630465378,-1243.9,0.00023547,30]
[380266135,1755630465433,-2729.11,0.00023547,30]
[380266136,1755630465488,-400.0,0.00023547,30]
[380266137,1755630465539,-400.0,0.00023547,30]
[380266138,1755630465587,-400.0,0.00023547,30]
[380266139,1755630465631,-400.0,0.00023547,30]
[380266140,1755630465673,-514.92,0.00023547,30]
[380266141,1755630465717,-2659.25,0.00023547,30]
[380266142,1755630465761,-2276.56,0.00023547,30]
[380266143,1755630465807,-474.19,0.00023547,30]
[380266144,1755630465851,-2376.31,0.00023547,30]
[380266145,1755630465896,-400.0,0.00023547,30]
[380266146,1755630465939,-1207.05,0.00023547,30]
[380266147,1755630465982,-400.0,0.00023547,30]
[380266148,1755630466026,-400.0,0.00023547,30]
[380266149,1755630466069,-400.0,0.00023547,30]
[380266150,1755630466115,-633.48,0.00023547,30]
[380266151,1755630466160,-680.06,0.00023547,30]
[380266152,1755630466204,-523.52,0.00023547,30]
[380266153,1755630466247,-400.0,0.00023547,30]
[380266154,1755630466291,-514.84,0.00023547,30]
[380266155,1755630466341,-2485.42,0.00023547,30]
[380266156,1755630466391,-400.0,0.00023547,30]
[380266157,1755630466438,-2070.68,0.00023547,30]
[380266158,1755630466483,-2109.71,0.00023547,30]
[380266159,1755630466526,-765.55,0.00023547,30]
[380266160,1755630466570,-400.0,0.00023547,30]
[380266161,1755630466622,-400.0,0.00023547,30]
[380266162,1755630466665,-2380.79,0.00023547,30]
[380266163,1755630466722,-400.0,0.00023547,30]
[380266164,1755630466769,-609.66,0.00023547,30]
[380266165,1755630466814,-424.03915094,0.00023547,30]
[380266166,1755630466857,-400.0,0.00023547,30]
[380266167,1755630466902,-2214.91,0.00023547,30]
[380266168,1755630466946,-400.0,0.00023547,30]
[380266169,1755630466990,-1455.64,0.00023547,30]
[380266170,1755630467036,-812.07,0.00023547,30]
[380266171,1755630467082,-2318.11,0.00023547,30]
[380266172,1755630467128,-624.94,0.00023547,30]
[380266173,1755630467176,-735.73,0.00023547,30]
[380266174,1755630467232,-2543.44,0.00023547,30]
[380266175,1755630467290,-419.06650005,0.00023547,30]
[380266176,1755630467345,-475.29,0.00023547,30]
[380266177,1755630467398,-400.0,0.00023547,30]
[380266178,1755630467449,-1267.25,0.00023547,30]
[380266179,1755630467496,-480.84,0.00023547,30]
[380266180,1755630467540,-1790.38,0.00023547,30]
[380266181,1755630467587,-1978.17,0.00023547,30]
[380266182,1755630467632,-991.43,0.00023547,30]
[380266183,1755630467676,-2403.23,0.00023547,30]
[380266184,1755630467719,-457.25,0.00023547,30]
[380266185,1755630467763,-435.28,0.00023547,30]
[380266186,1755630467808,-400.0,0.00023547,30]
[380266187,1755630467851,-600.44,0.00023547,30]
[380266188,1755630467898,-739.64,0.00023547,30]
[380266189,1755630467947,-706.07,0.00023547,30]
[380266190,1755630467997,-400.0,0.00023547,30]
[380266191,1755630468051,-752.31,0.00023547,30]
[380266192,1755630468102,-840.02,0.00023547,30]
[380266193,1755630468152,-2897.61,0.00023547,30]
[380266194,1755630468203,-1691.99,0.00023547,30]
[380266195,1755630468256,-1037.15,0.00023547,30]
[380266196,1755630468312,-400.0,0.00023547,30]
[380266197,1755630468367,-1106.8,0.00023547,30]
[380266198,1755630468419,-400.0,0.00023547,30]
[380266199,1755630468469,-2337.75,0.00023547,30]
[380266200,1755630468519,-634.7,0.00023547,30]
[380266201,1755630468579,-2040.3,0.00023547,30]
[380266202,1755630468639,-400.0,0.00023547,30]
[380266203,1755630468686,-1042.17,0.00023547,30]
[380266204,1755630468734,-933.24,0.00023547,30]
[380266205,1755630468780,-774.29,0.00023547,30]
[380266206,1755630468824,-513.97,0.00023547,30]
[380266207,1755630468869,-400.0,0.00023547,30]
[380266208,1755630468915,-3303.11,0.00023547,30]
[380266209,1755630468966,-2536.84,0.00023547,30]
[380266210,1755630469013,-2383.23,0.00023547,30]
[380266211,1755630469064,-3032.63,0.00023547,30]
[380266212,1755630469116,-400.0,0.00023547,30]
[380266213,1755630469167,-400.0,0.00023547,30]
[380266214,1755630469219,-291.59415903,0.00023547,30]
[380266215,1755630469268,-3033.29,0.00023547,30]
[380266216,1755630469323,-1129.12,0.00023547,30]
[380266217,1755630469376,-421.43,0.00023547,30]
[380266218,1755630469430,-1791.81,0.00023547,30]
[380266219,1755630469477,-2573.42,0.00023547,30]
[380266220,1755630469527,-674.85,0.00023547,30]
[380266221,1755630469575,-988.84,0.00023547,30]
[380266222,1755630469624,-2431.24,0.00023547,30]
[380266223,1755630469669,-440.14,0.00023547,30]
[380266224,1755630469712,-925.02,0.00023547,30]
[380266225,1755630469757,-1825.21,0.00023547,30]
[380266226,1755630469804,-2152.71,0.00023547,30]
[380266227,1755630469848,-400.0,0.00023547,30]
[380266228,1755630469893,-691.76,0.00023547,30]
[380266229,1755630469940,-1838.62,0.00023547,30]
[380266230,1755630469989,-2269.1,0.00023547,30]
[380266231,1755630470034,-400.0,0.00023547,30]
[380266232,1755630470081,-445.2,0.00023547,30]
[380266233,1755630470127,-1032.92,0.00023547,30]
[380266234,1755630470174,-1019.74,0.00023547,30]
[380266235,1755630470220,-400.0,0.00023547,30]
[380266236,1755630470590,-400.0,0.00023547,30]
[380266237,1755630470638,-835.03,0.00023547,30]
[380266238,1755630470688,-400.0,0.00023547,30]
[380266239,1755630470737,-2130.51,0.00023547,30]
[380266240,1755630470790,-618.96,0.00023547,30]
[380266241,1755630470837,-609.14,0.00023547,30]
[380266242,1755630470884,-400.0,0.00023547,30]
[380266243,1755630470931,-731.3,0.00023547,30]
[380266244,1755630470981,-400.0,0.00023547,30]
[380266245,1755630471030,-400.0,0.00023547,30]
[380266246,1755630471087,-2286.59,0.00023547,30]
[380266247,1755630471139,-2177.09,0.00023547,30]
[380266248,1755630471192,-1491.89,0.00023547,30]
[380266249,1755630471244,-1639.78,0.00023547,30]
[380266250,1755630471297,-1553.88,0.00023547,30]
[380266251,1755630471353,-2141.31,0.00023547,30]
[380266252,1755630471409,-1445.88,0.00023547,30]
[380266253,1755630471461,-1704.68,0.00023547,30]
[380266254,1755630471512,-400.0,0.00023547,30]
[380266255,1755630471567,-400.0,0.00023547,30]
[380266256,1755630471621,-400.0,0.00023547,30]
[380266257,1755630471669,-824.76,0.00023547,30]
[380266258,1755630471714,-1457.27,0.00023547,30]
[380266259,1755630471757,-808.44,0.00023547,30]
[380266260,1755630471800,-521.21,0.00023547,30]
[380266261,1755630471843,-2318.32,0.00023547,30]
[380266262,1755630471887,-575.21,0.00023547,30]
[380266263,1755630471930,-2610.91,0.00023547,30]
[380266264,1755630471974,-400.0,0.00023547,30]
[380266265,1755630472017,-2082.96,0.00023547,30]
[380266266,1755630472063,-400.0,0.00023547,30]
[380266267,1755630472109,-400.0,0.00023547,30]
[380266268,1755630472158,-400.0,0.00023547,30]
[380266269,1755630472205,-400.0,0.00023547,30]
[380266270,1755630472254,-741.66,0.00023547,30]
[380266271,1755630472306,-1641.49,0.00023547,30]
[380266272,1755630472357,-2230.22,0.00023547,30]
[380266273,1755630472410,-400.0,0.00023547,30]
[380266274,1755630472459,-1614.82,0.00023547,30]
[380266275,1755630472505,-1259.81,0.00023547,30]
[380266276,1755630472551,-601.76,0.00023547,30]
[380266277,1755630472597,-400.0,0.00023547,30]
[380266278,1755630472641,-400.0,0.00023547,30]
[380266279,1755630472685,-1764.26,0.00023547,30]
[380266280,1755630472728,-520.65,0.00023547,30]
[380266281,1755630472785,-807.58,0.00023547,30]
[380266282,1755630472831,-2852.86,0.00023547,30]
[380266283,1755630472876,-2595.97,0.00023547,30]
[380266284,1755630472922,-1250.58,0.00023547,30]
[380266285,1755630472971,-759.93,0.00023547,30]
[380266286,1755630473018,-2576.77,0.00023547,30]
[380266287,1755630473068,-400.0,0.00023547,30]
[380266288,1755630473116,-400.0,0.00023547,30]
[380266289,1755630473166,-2990.03,0.00023547,30]
[380266290,1755630473218,-400.0,0.00023547,30]
[380266291,1755630473270,-969.64,0.00023547,30]
[380266292,1755630473324,-874.65,0.00023547,30]
[380266293,1755630473373,-1990.94,0.00023547,30]
[380266294,1755630473420,-1275.47,0.00023547,30]
[380266295,1755630473465,-400.0,0.00023547,30]
[380266296,1755630473511,-1880.76,0.00023547,30]
[380266297,1755630473558,-403.59,0.00023547,30]
[380266298,1755630473602,-400.0,0.00023547,30]
[380266299,1755630473648,-400.0,0.00023547,30]
[380266300,1755630473695,-2825.31,0.00023547,30]
[380266301,1755630473740,-400.0,0.00023547,30]
[380266302,1755630473784,-1171.85,0.00023547,30]
[380266303,1755630473829,-400.0,0.00023547,30]
[380266304,1755630473879,-1915.83,0.00023547,30]
[380266305,1755630473927,-400.0,0.00023547,30]
[380266306,1755630473978,-1032.99,0.00023547,30]
[380266307,1755630474032,-1115.27,0.00023547,30]
[380266308,1755630474085,-2003.39,0.00023547,30]
[380266309,1755630474136,-400.0,0.00023547,30]
[380266310,1755630474188,-400.0,0.00023547,30]
[380266311,1755630474238,-400.0,0.00023547,30]
[380266312,1755630474290,-773.28,0.00023547,30]
[380266313,1755630474345,-2415.35,0.00023547,30]
[380266314,1755630474401,-400.0,0.00023547,30]
[380266315,1755630474458,-400.0,0.00023547,30]
[380266316,1755630474515,-1093.1,0.00023547,30]
[380266317,1755630474574,-1694.65,0.00023547,30]
[380266318,1755630474628,-727.99,0.00023547,30]
[380266319,1755630474678,-1683.21,0.00023547,30]
[380266320,1755630474727,-3052.27,0.00023547,30]